Cogmind - Beta 14 @@@ ROGUE MODE // 2024.08.18 @ 22:24:15 Player: DaNachoSteve Result: Self-destructed Performance ------------- Evolutions (2) 1000 Regions Visited (3) 600 Robots Destroyed (74) 370 Value Destroyed (2099) 2099 Prototype IDs (7) 140 Alien Tech Used (0) 0 Bonus (69) 69 TOTAL SCORE: 4278 Bonus ------- High Alert Combat Kills 69 Cogmind --------- Core Integrity 188/550 Matter 121/300 Energy 275/275 System Corruption 0% Temperature Cool (82) Movement Core (500) Ox9 Location -8/Materials Parts ------- > --- POWER (2) -------- Deuterium Engine > --- PROPULSION (3) --- (None) > --- UTILITY (4) ------ Targeting Computer Hardened Medium Armor Plating Hardened Medium Armor Plating > --- WEAPON (2) ------- Enhanced Autogun > --- INVENTORY (5) ---- Precision Beam Rifle Precision Beam Rifle EM Pulse Cannon EM Pulse Cannon Peak State ------------ > --- POWER ------------ Light Nuclear Core Light Nuclear Core > --- PROPULSION ------- Aluminum Leg Aluminum Leg VSS Leg > --- UTILITY ---------- Large Storage Unit Targeting Computer Core Shielding Hardened Medium Armor Plating > --- WEAPON ----------- Enhanced Autogun Enhanced Autogun > --- INVENTORY -------- Hardened Medium Armor Plating Hardened Medium Armor Plating Precision Beam Rifle Precision Beam Rifle Precision Beam Rifle Precision Beam Rifle Enhanced Autogun Enhanced Autogun Datajack Great Maul Great Maul Great Maul [Rating: 29] Favorites ----------- Power Ion Engine Engine Ion Engine Power Core Light Nuclear Core Propulsion Wheel Treads Light Treads Leg Aluminum Leg Wheel Wheel Utility Large Storage Unit Device Improved Heat Sink Storage Large Storage Unit Processor Targeting Computer Hackware Hacking Suite Protection Hardened Medium Armor Plating Weapon Improved Medium Laser Energy Gun Improved Medium Laser Energy Cannon Beam Cannon Ballistic Gun Enhanced Autogun Launcher Grenade Launcher Impact Weapon Great Maul Build | -11 -10 -9 -8 ------- Run | Yrd Mat Mat Mat Slots Evolved 4 | . . 2 2 Power 1 | . . . 1 Propulsion 1 | . . . 1 Utility 2 | . . 2 . Weapon . | . . . . Parts Attached 92 | 6 30 32 24 Power 10 | 1 2 2 5 Engine 5 | 1 1 1 2 Core 5 | . 1 1 3 Reactor . | . . . . Propulsion 19 | 2 3 5 9 Treads 3 | 2 . 1 . Leg 6 | . . . 6 Wheel 10 | . 3 4 3 Hover . | . . . . Flight . | . . . . Utility 24 | 1 4 15 4 Device 8 | . 1 7 . Storage 2 | 1 1 . . Processor 3 | . . 3 . Hackware 1 | . . 1 . Protection 10 | . 2 4 4 Artifact . | . . . . Weapon 39 | 2 21 10 6 Energy Gun 15 | 2 9 2 2 Energy Cannon 5 | . 4 1 . Ballistic Gun 8 | . . 4 4 Ballistic Cannon . | . . . . Launcher 9 | . 8 1 . Special Weapon . | . . . . Impact Weapon 2 | . . 2 . Slashing Weapon . | . . . . Piercing Weapon . | . . . . Special Melee Weapon . | . . . . Unidentified Prototypes 3 | . 1 2 . Parts Lost 23 | . 1 9 13 Power 4 | . 1 . 3 Propulsion 10 | . . 4 6 Utility 6 | . . 3 3 Weapon 3 | . . 2 1 Highest Loss Streak 5 | . 1 4 5 To Critical Strikes . | . . . . Average Slot Usage (%) 93 | . 98 91 87 Engine 7 | . 8 8 6 Core 4 | . 4 2 7 Treads 3 | . 5 3 . Leg 4 | . . . 14 Wheel 14 | . 22 11 5 Device 3 | . 3 8 . Storage 11 | . 14 11 8 Processor 8 | . . 17 13 Protection 9 | . 9 6 12 Energy Gun 12 | . 17 12 5 Energy Cannon 4 | . 9 1 . Ballistic Gun 4 | . . 2 11 Launcher 1 | . 1 2 . Peak Build Rating 29 | 6 16 22 29 Average Rating 15 | 4 11 15 24 On Entrance 10 | . 6 13 22 Naked Turns . | . . . . Heaviest Build 49 | 14 34 41 49 Greatest Support 40 | 40 40 26 32 Greatest Overweight (x) 13 | . 1 13 12 Average Overweight (x) . | . . 1 1 Largest Inventory Capacity 15 | 8 15 15 15 Average Capacity 13 | 6 12 15 14 Most Carried 15 | 4 15 15 15 Average Carried 10 | 2 9 12 12 Final Capacity 15 | 8 15 15 5 Final Carried 15 | 2 15 15 4 Class Distribution -------------------- 83% | Mutant 16% | Scavenger-Mutant Dominant Class ---------------- Mutant | -10/Materials Mutant | -9/Materials Scavenger-Mutant | -8/Materials Resources | -11 -10 -9 -8 ----------- Run | Yrd Mat Mat Mat Matter Collected 1902 | 204 346 514 838 Remotely . | . . . . Salvage Created 2776 | . 559 1013 1204 Parts 148 | . 44 53 51 Haulers Intercepted 3 | . . 1 2 Recyclers Shooed 1 | . . . 1 Parts Field Recycled . | . . . . Retrieved Matter . | . . . . Parts Self-Destructed . | . . . . Prevented . | . . . . Kills | -11 -10 -9 -8 ------- Run | Yrd Mat Mat Mat Combat Hostiles Destroyed 52 | . 14 19 19 Guns 43 | . 10 15 18 Cannons 2 | . 1 1 . AOE 5 | . 3 2 . Classes Destroyed 12 | . 5 5 2 Worker 5 | . . 4 1 Builder 4 | . 2 . 2 Tunneler 1 | . . . 1 Hauler 3 | . . 1 2 Recycler 1 | . . . 1 Operator 2 | . 2 . . Watcher 6 | . 3 2 1 Swarmer 8 | . 6 . 2 Grunt 32 | . 8 12 12 Brawler 3 | . . 2 1 Duelist 1 | . . 1 . Sentry 8 | . . 4 4 Best Kill Streak 7 | . 7 7 7 Combat Bots Only 5 | . 5 5 4 Max Kills in Single Turn 3 | . 3 2 2 Gunslinging . | . . . . Exploded 2 | . 2 2 . Melee . | . . . . Uniques/NPCs Destroyed . | . . . . Combat | -11 -10 -9 -8 -------- Run | Yrd Mat Mat Mat Hostile Shots Fired 329 | . 65 101 163 Missed 74 | . 24 25 25 Damage Taken 3652 | . 506 937 2209 Core 625 | . 132 131 362 Absorbed by Shields 185 | . . 185 . Redirected to Shielding 35 | . 23 . 12 Core Remaining (%) 71 | 100 47 67 . Volleys Fired 232 | . 54 66 112 Largest 2 | . 2 2 2 Hottest 122 | . 120 116 122 Shots Fired 402 | . 95 115 192 Gun 355 | . 63 100 192 Cannon 31 | . 21 10 . Launcher 16 | . 11 5 . Special . | . . . . Kinetic 178 | . . 19 159 Thermal 165 | . 41 91 33 Explosive 9 | . 4 5 . Electromagnetic 50 | . 50 . . Robot Hit Streak 26 | . 8 16 26 Robot Miss Streak 5 | . 5 4 3 Penetration Max . | . . . . Secondary Targets 7 | . . 4 3 Max Gunslinging Chain 1 | . . 1 1 Shots Hit Robots 253 | . 44 74 135 Core Hits 111 | . 27 37 47 Critical Kills . | . . . . Critical Parts Destroyed . | . . . . Critical Strikes 13 | . 1 9 3 Burn 13 | . 1 9 3 Melee Attacks 3 | . . . 3 Impact 3 | . . . 3 Slashing . | . . . . Piercing . | . . . . Sneak Attacks . | . . . . Combat Hostiles . | . . . . Follow-up Attacks . | . . . . Damage Inflicted 4739 | . 1024 1338 2377 Guns 4100 | . 607 1175 2318 Cannons 156 | . 86 70 . Explosions 424 | . 331 93 . Melee 59 | . . . 59 Ramming . | . . . . Kinetic 2048 | . . 207 1841 Thermal 1884 | . 369 1038 477 Explosive 270 | . 177 93 . Electromagnetic 478 | . 478 . . Impact 59 | . . . 59 Slashing . | . . . . Piercing . | . . . . Highest Corruption 6 | . 3 6 . Average Corruption 3 | . 1 5 . Corruption Purged . | . . . . Corruption Blocked . | . . . . Effects 27 | . 10 17 . Message Errors 6 | . 1 5 . Matter Fused 8 | . 3 5 . Heat Flow Errors 2 | . 1 1 . Energy Discharges 4 | . 3 1 . Parts Fused 1 | . . 1 . Data Loss (minor) 4 | . 1 3 . Misfires 1 | . 1 . . Weapon Failures 1 | . . 1 . Overload Shots . | . . . . Overflow Damage 2 | . 2 . . Projectiles 2 | . 2 . . Explosions . | . . . . Melee . | . . . . Knockbacks 1 | . . . 1 Impact 1 | . . . 1 Kinetic . | . . . . Secondary . | . . . . Self-Inflicted Damage 121 | . 112 9 . Shots 7 | . 6 1 . Rammed . | . . . . Targets Rammed . | . . . . Kicked . | . . . . Crushed . | . . . . Highest Temperature 546 | . 207 546 541 Average Temperature 171 | . 69 197 207 Received Heat Transfer 1584 | . 123 300 1161 Effects 47 | . . 12 35 Shutdowns 9 | . . 2 7 Energy Bleed 5 | . . 2 3 Interference 15 | . . 5 10 Matter Decay 6 | . . 2 4 Short Circuit 6 | . . . 6 Damage (minor) 5 | . . 1 4 Damage (core) 1 | . . . 1 Siege Activations . | . . . . Robots Corrupted . | . . . . Combat Hostiles . | . . . . Parts Fried 1 | . 1 . . Impact Corruptions . | . . . . Robots Melted 2 | . . 1 1 Combat Hostiles 2 | . . 1 1 Parts Melted 15 | . 2 11 2 Heat Transferred 5008 | . 827 2923 1258 Parts Sabotaged . | . . . . Parts Stolen . | . . . . Parts Stripped . | . . . . Power Chain Reactions 1 | . 1 . . Alert | -11 -10 -9 -8 ------- Run | Yrd Mat Mat Mat Peak Influence 443 | . 270 443 436 Initial 186 | . . 70 186 Average 234 | . 167 280 317 Maximum Alert Level 2 | . 1 2 2 Low Security (%) 41 | 100 68 23 9 Level 1 55 | . 31 73 79 Level 2 3 | . . 2 11 Level 3 . | . . . . Level 4 . | . . . . Level 5 . | . . . . High Security . | . . . . Max Security . | . . . . Squads Dispatched 8 | . 2 1 5 Investigation 4 | . 2 1 1 Extermination . | . . . . Reinforcement . | . . . . Assault . | . . . . Garrison 4 | . . . 4 Intercept . | . . . . Searches Triggered . | . . . . Construction Impeded . | . . . . Haulers Reinforced . | . . . . Active Scanning Responses . | . . . . Cargo Convoy Interrupts . | . . . . Stealth | -11 -10 -9 -8 --------- Run | Yrd Mat Mat Mat Distress Signals 7 | . 2 3 2 Communications Jammed . | . . . . Distress Signals . | . . . . Times Spotted 66 | . 22 23 21 Peak Tracking Total 5 | . 4 4 5 Tactical Retreats 3 | . . 3 . Traps | -11 -10 -9 -8 ------- Run | Yrd Mat Mat Mat Traps Triggered 3 | . 2 1 . Indirectly . | . . . . Trap Hack Attempts . | . . . . Triggered . | . . . . Disarmed . | . . . . Reprogrammed . | . . . . Reused . | . . . . Traps Extracted . | . . . . Installed . | . . . . Triggered . | . . . . Machines | -11 -10 -9 -8 ---------- Run | Yrd Mat Mat Mat Machines Disabled 5 | . 3 1 1 Max in Single Turn 1 | . 1 1 1 Machines Repaired . | . . . . Machines Dismantled . | . . . . Machines Sabotaged . | . . . . Overloaded Fab Kills . | . . . . Hacking | -11 -10 -9 -8 --------- Run | Yrd Mat Mat Mat Machines Accessed 12 | . 7 3 2 Terminals 9 | . 6 2 1 Fabricators . | . . . . Repair Stations 2 | . 1 1 . Recycling Units . | . . . . Scanalyzers . | . . . . Garrison Access 1 | . . . 1 Total Hacks 43 | . 25 13 5 Successful 19 | . 14 4 1 Failed 24 | . 11 9 4 Catastrophic 6 | . 1 4 1 Database Lockouts . | . . . . Manual . | . . . . Terminals 31 | . 21 7 3 Fabricators . | . . . . Repair Stations 10 | . 4 6 . Recycling Units . | . . . . Scanalyzers . | . . . . Garrison Access 2 | . . . 2 Terminal Hacks 15 | . 13 2 . Prototype ID Bank 3 | . 2 1 . Emergency Access Points 1 | . 1 . . Terminal Index 1 | . 1 . . Alert Level 2 | . 1 1 . Locate Traps 1 | . 1 . . Dispatch Records 1 | . 1 . . Maintenance Status 2 | . 2 . . Transport Status 1 | . 1 . . Hauler Manifests 1 | . 1 . . Zone Layout 2 | . 2 . . Fabricator Hacks . | . . . . Repair Station Hacks 3 | . 1 2 . Scan Component 3 | . 1 2 . Recycling Unit Hacks . | . . . . Scanalyzer . | . . . . Garrison Access Hacks 1 | . . . 1 Unlock Access 1 | . . . 1 Unauthorized Hacks . | . . . . Terminals . | . . . . Fabricators . | . . . . Repair Stations . | . . . . Recycling Units . | . . . . Scanalyzers . | . . . . Garrison Access . | . . . . Data Cores Recovered 1 | . 1 . . Used . | . . . . Hacking Detections 10 | . 5 3 2 Full Trace Events 6 | . 3 2 1 Feedback Events 1 | . 1 . . Corruption 1 | . 1 . . Feedback Blocked . | . . . . Robot Schematics Acquired . | . . . . Robots Built . | . . . . Authchips . | . . . . Time . | . . . . Total Robot Build Rating . | . . . . Part Schematics Acquired . | . . . . Parts Built . | . . . . Authchips . | . . . . Time . | . . . . Total Part Build Rating . | . . . . Parts Repaired . | . . . . Time . | . . . . Parts Recycled . | . . . . Recycled Matter . | . . . . Retrieved Matter . | . . . . Retrieved Components . | . . . . Parts Scanalyzed . | . . . . Part Schematics Acquired . | . . . . Parts Damaged . | . . . . Bothacking | -11 -10 -9 -8 ------------ Run | Yrd Mat Mat Mat Used RIF Installer . | . . . . Robots Hacked . | . . . . Non-combat . | . . . . Combat . | . . . . Robot Hacks Applied . | . . . . Relay Couplers Released . | . . . . Fabnet Peak Effective % . | . . . . Robots Rewired . | . . . . Allies Hacked . | . . . . Hacks Repelled . | . . . . Allies | -11 -10 -9 -8 -------- Run | Yrd Mat Mat Mat Total Allies . | . . . . Largest Group . | . . . . Highest-Rated Group . | . . . . Highest-Rated Ally . | . . . . Total Orders . | . . . . Ally Attacks . | . . . . Total Damage . | . . . . Kills . | . . . . Allies Corrupted . | . . . . Allies Melted . | . . . . Intel | -11 -10 -9 -8 ------- Run | Yrd Mat Mat Mat Robot Analysis Total . | . . . . Derelict Logs Recovered . | . . . . Drone Launches . | . . . . Drone Recoveries . | . . . . Exploration | -11 -10 -9 -8 ------------- Run | Yrd Mat Mat Mat Turns Passed 2710 | 81 1143 741 745 Spaces Moved 1424 | 47 818 314 245 Core 16 | 6 . 5 5 Treads 214 | 41 87 86 . Legs 138 | . . . 138 Wheels 1056 | . 731 223 102 Hover . | . . . . Flight . | . . . . Fastest Speed 50 | 50 90 95 95 Average Speed 130 | 145 107 150 177 Slowest Speed 700 | 160 160 700 650 Overloaded Moves . | . . . . Propulsion Burnouts . | . . . . Robots Hopped . | . . . . Cave-ins Triggered . | . . . . Exploration Rate (%) 38 | 3 95 35 19 Regions Visited 3 Branch Regions . Pre-discovered Areas . | . . . . Known Exits Taken . | . . . . Unknown Exits Taken 3 | 1 1 1 . Scrap Searched . | . . . . Spaces Dug . | . . . . Terrain Destroyed 73 | . 35 38 . Melee . | . . . . Projectile . | . . . . AOE 73 | . 35 38 . Terrain Rammed . | . . . . Walls Destroyed . | . . . . Machines Disabled . | . . . . Actions | -11 -10 -9 -8 --------- Run | Yrd Mat Mat Mat Total 1926 | 60 980 468 418 Wait 58 | . 45 7 6 Move 1421 | 46 817 313 245 Hop . | . . . . Pick Up 77 | 8 24 29 16 Fast Attach 5 | . . 3 2 Attach 32 | 6 2 14 10 Detach 1 | . . 1 . Swap 55 | . 28 15 12 Drop 42 | . 10 20 12 Fire 232 | . 54 66 112 Melee 3 | . . . 3 Ram . | . . . . Kick . | . . . . Crush . | . . . . Escape Stasis . | . . . . Rewire . | . . . . Trap . | . . . . Miscellaneous . | . . . . Route ------- -11/Scrapyard -10/Materials (discovered 4 exits: *Mat x3 / [*Min]) -9/Materials (discovered 3 exits: *Mat / [*Min] / [*Sto]) -8/Materials (discovered 1 exit: Gar) History --------- Turn | Location | Event 38 | -11/Scrapyard | Discovered new exit (range 15) 82 | -11/Scrapyard | Entered Materials 229 | -10/Materials | Discovered new exit (range 14) 304 | -10/Materials | Build established: Mutant 529 | -10/Materials | Core integrity fell below 50% 673 | -10/Materials | Discovered new exit (range 7) 890 | -10/Materials | Discovered new exit (range 16) 1062 | -10/Materials | Discovered new exit (range 15) 1225 | -10/Materials | Entered another Materials area 1225 | -9/Materials | Evolved 2 slots: Utility x2 1258 | -9/Materials | Discovered new exit (range 12) 1496 | -9/Materials | Discovered new exit (range 11) 1569 | -9/Materials | Lost 3 parts (2u1w) 1671 | -9/Materials | Lost 4 parts (2n1u1w) 1801 | -9/Materials | Discovered new exit (range 15) 1966 | -9/Materials | Entered another Materials area 1966 | -8/Materials | Evolved 2 slots: Power x1, Propulsion x1 2081 | -8/Materials | Lost 5 parts (2p2n1u) 2128 | -8/Materials | Garrison activated, responded to threat 2188 | -8/Materials | Identified exit to Garrison 2325 | -8/Materials | Core integrity fell below 50% 2336 | -8/Materials | Garrison activated, responded to threat 2612 | -8/Materials | Build established: Scavenger-Mutant 2690 | -8/Materials | Lost 4 parts (3n1u) 2711 | -8/Materials | Self-destructed Last Messages --------------- Overheating: System interference. Enh. Autogun temporarily disabled. Targeting Computer temporarily disabled. Lrg. Storage Unit destroyed. Power failure, Deuterium Engine shutdown. Overheating: Matter decay (-19). Critical hit (Burn: +37). Overheating: System interference. Enh. Autogun temporarily disabled. Power failure, Deuterium Engine shutdown. Lgt. Nuclear Core broken. Overheating: Short circuit. G-47 Trooper destroyed. Core Shielding destroyed. Enh. Autogun destroyed. U-05 Engineer builds a Door. Y-45 Defender destroyed. U-05 Engineer destroyed. Acquired 55 matter. Dropped Broken Lgt. Nuclear Core. Map ----- +----------------------------------------------------+ | ?????????????????????????????????????????????????? | | ?????????????????????????????????????????????????? | | ?????????????????????????????????????????????????? | | ?????????????????????????????????????????????????? | | ?????????????????????????????????????????????????? | | ?????????????????????????????????????????????????? | | ?????????????????????????????????????????????????? | | ?????????????????????????????????????????????????? | | ?????????????????????????????????????????????????? | | ?????????????????????????????????????????????????? | | ?????????????????????????????????????????????????? | | ?????????????????????????????????????????????????? | | ?????????????????????????????????????????????????? | | ??#######?????????????????#??????????????????????? | | ??? ?????????????????? ??????????????????????? | | ??? ?????????????????? ??????????????????????? | | ??? ?????????????????? ??????????????????????? | | ???? ############??????# #?????????????????????? | | ???? ## """ """ ""?????# #?????????????????????? | | #+### ## """ """ """??#?# #?????????????????????? | | ## ## """ """ """ #?# #?????????????????????? | | ## ## #??# #?????????????????????? | | ## ## #??# #?????????????????????? | | ## |## #??# #?????????????????????? | | # = ##+######+######## ###### #??????? | | / *=! ! !=!!*%/[[]!@! + *#??????? | | # = !%=!%##+################????????????? | | == #! =!########!!#]/ #????????????????????? | | ##*%##??????# !# #????????????????????? | | "####[[#???????+ # [ #????????????????????? | | #### #???????# # * #????????????????????? | | == ##???!??# + [ #????????????????????? | | +??? ??# # #????????????????????? | | %*#### ##??? ??# # #????????????????????? | | = #??# #???? ??# # #????????????????????? | | ####+######+## ###########????????????????????? | | ## # ## ??????????????????????????????? | | ## """" # #####??????????????????????????????? | | = =# """" # #??????????????????????????????????? | | % # """" # #??????????????????????????????????? | | = + #!#????#+##??????????????????????????? | | # """"=#=#??? ??????????????????????????? | | +###/ """"=#=### """"??????????????????????????? | | # """"%+ [# ""S"" ?????????????????????????? | | # *#===+ "" "" ?????????????????????????? | | >" ##########[==# #??????????????????????? | | G" #????????#% =#?? [#??????????????????????? | | "" #????????#! #???? #??????????????????????? | | #????????# #?????? #??????????????????????? | | ############# ################?????????????????? | +----------------------------------------------------+ Best States ------------- Heat Dissipation 50 Energy Generation 23 Energy Capacity 335 Matter Stores 300 Matter Capacity 300 Sight Range 16 Terrain Scan Density 10 Armor Coverage 450 Core Shielding 20 Weapon Shielding 33 Evasion (%) 42 Targeting Accuracy 10 Recoil Reduction 2 Offensive Hacking 10 Item Schematics ----------------- None Robot Schematics ------------------ None Fabricated ------------ Nothing Alien Tech Used ----------------- None Achievements -------------- It's Just You Troublemaker Challenges ------------ None Game ------ Seed LightningReinforcedBallwheel Manual? 0 Play Time 00:51:59 Cumulative 3.0 hours Start 2024.08.18 @ 20:19:13 End 2024.08.18 @ 22:24:15 Sessions 3 Manual Loads 0 Difficulty Rogue Special Mode None Game No. 3 Rogue 3 Adventurer 0 Explorer 0 Win Type - Total 0 Types 0/0/0/0/0/0/0/0/0 Lore% 0 Gallery% 7 Achievement% 7 Wizard Run 0 Options --------- Layout 1 ASCII 0 Keyboard 0 Movement Mouse Keybinds 0 Fullscreen 1 Font 16/SmallcapsGlow Map View 55x38 Zoom Use 0% Tactical HUD 0 Map Filters NONE Filters NONE Steam 1 RUN: bb595f33-a396-4f95-992b-ece93cf229d2